[Event "Austrian Championship 2022"]
[Site "Vienna"]
[Date "2022.08.15"]
[Round "5.1"]
[White "Menezes, Christoph"]
[Black "Stanec, Nikolaus"]
[Result "1/2-1/2"]
[WhiteElo "2417"]
[BlackElo "2460"]
[Annotator "TA"]
[PlyCount "29"]
[EventDate "2022.08.12"]
[EventType "swiss"]
[EventCountry "AUT"]
[SourceTitle "playchess.com"]
[Source "ChessBase"]
[SourceQuality "1"]
[TimeControl "40/5400+30:1800+30"]

{[%evp 11,16,9,23,0,0,4,7]} 1. d4 {[%emt 0:00:08]} Nf6 {[%emt 0:00:14]} 2. c4 {[%emt 0:00:14]} e6 {[%emt 0:00:06]} 3. Nf3 {[%emt 0:00:28]} Bb4+ {[%emt 0:00:26]} 4. Bd2 {[%emt 0:00:33]} Qe7 {[%emt 0:01:59]} 5. e3 {[%emt 0:00:45]} Bxd2+ {[%emt 0:00:58]} 6. Qxd2 {[%emt 0:00:31]} d6 {[%emt 0:01:58]} 7. Bd3 {[%emt 0:04:32] E11: Bogo-Indian.} e5 {[%emt 0:00:59] [#] ...e4 is the strong threat.} 8. Bc2 {[%emt 0:00:21]} Bg4 {[%emt 0:08:56] [#] A rather calm draw.} {Predecessor:} 9. Nc3 $146 Bxf3 10. gxf3 exd4 11. Qxd4 Nc6 12. Qd2 O-O-O 13. O-O-O g6 14. Qe2 Nb4 15. Bb1 {½-½ (23) Makhmutov,R (2450)-Tregubov,P (2560) Sochi 2021} 1/2-1/2

[Event "Austrian Championship 2022"]
[Site "Vienna"]
[Date "2022.08.15"]
[Round "5.1"]
[White "Mayrhuber, Nikola"]
[Black "Kordzadze, Nino"]
[Result "1-0"]
[ECO "A96"]
[WhiteElo "2141"]
[BlackElo "2043"]
[Annotator "NA RC"]
[PlyCount "49"]
[EventDate "2022.08.12"]
[EventType "swiss"]
[EventCountry "AUT"]
[SourceTitle "playchess.com"]
[Source "ChessBase"]
[SourceQuality "1"]
[TimeControl "40/5400+30:1800+30"]

1. d4 {[%emt 0:02:34]} e6 {[%emt 0:00:12]} 2. c4 {[%emt 0:00:05]} f5 {[%emt 0:00:05]} 3. g3 {[%emt 0:00:10]} Nf6 {[%emt 0:00:07]} 4. Bg2 {[%emt 0:00:05]} Be7 {[%emt 0:00:08]} 5. Nf3 {[%emt 0:00:09]} d6 {[%emt 0:00:15]} 6. O-O {[%emt 0:00:42]} O-O {[%emt 0:00:08]} 7. b4 {[%emt 0:01:24]} Ne4 {[%emt 0:14:17]} 8. Bb2 {[%emt 0:00:26]} Qe8 {[%emt 0:02:25]} 9. Nc3 {[%emt 0:10:57]} Qh5 {[%emt 0:04:25]} 10. Nd2 {[%emt 0:14:51]} Ng5 {[%emt 0:02:55]} 11. h4 {[%emt 0:02:37]} Nf7 {[%emt 0:01:11]} 12. e4 {[%emt 0:00:21]} Qxd1 {[%emt 0:01:42]} 13. Raxd1 {[%emt 0:00:13]} f4 {[%emt 0:13:56]} 14. gxf4 {[%emt 0:09:25]} Nc6 {[%emt 0:02:05]} 15. Nf3 {[%emt 0:02:10]} Nxb4 {[%emt 0:03:25]} 16. e5 {[%emt 0:10:29]} Nh6 {[%emt 0:03:14]} 17. a3 {[%emt 0:03:19]} Nc6 {[%emt 0:00:56]} 18. Nb5 {[%emt 0:00:23]} Rxf4 {[%emt 0:08:38]} 19. Nxc7 {[%emt 0:00:40]} Rb8 {[%emt 0:00:10]} 20. exd6 {[%emt 0:05:26]} Bxd6 {[%emt 0:01:26]} 21. Nb5 {[%emt 0:00:15]} Nf5 {[%emt 0:04:00]} 22. d5 {[%emt 0:05:02]} exd5 {[%emt 0:16:46]} 23. cxd5 {[%emt 0:00:29]} Nce7 {[%emt 0:01:21]} 24. Nxd6 {[%emt 0:00:36]} Rxf3 {[%emt 0:01:59]} 25. Nxc8 {[%emt 0:03:24]} 1-0

[Event "Austrian Championship 2022"]
[Site "Vienna"]
[Date "2022.08.15"]
[Round "5.2"]
[White "Blohberger, Felix"]
[Black "Schreiner, Peter"]
[Result "1-0"]
[ECO "A73"]
[WhiteElo "2492"]
[BlackElo "2416"]
[Annotator "TA"]
[PlyCount "77"]
[EventDate "2022.08.12"]
[EventType "swiss"]
[EventCountry "AUT"]
[SourceTitle "playchess.com"]
[Source "ChessBase"]
[SourceQuality "1"]
[TimeControl "40/5400+30:1800+30"]

{[%evp 21,77,25,60,-14,10,0,0,0,0,0,0,-29,42,32,50,46,38,24,38,33,45,35,118,53,62,63,90,88,282,283,284,278,275,283,275,267,274,267,293,230,232,219,268,273,237,223,234,220,216,226,293,282,576,631,619,566,29996,29997]} 1. d4 {[%emt 0:00:04]} Nf6 {[%emt 0:00:50]} 2. c4 {[%emt 0:00:07]} c5 {[%emt 0:00:20]} 3. d5 {[%emt 0:00:44]} g6 {[%emt 0:00:14]} 4. Nc3 {[%emt 0:00:06]} Bg7 {[%emt 0:00:05]} 5. e4 {[%emt 0:00:12]} O-O {[%emt 0:00:11]} 6. Nf3 {[%emt 0:02:50]} e6 {[%emt 0:00:18]} 7. Be2 {[%emt 0:00:17]} d6 {[%emt 0:06:45]} 8. O-O {[%emt 0:00:24]} exd5 {[%emt 0:11:22]} 9. cxd5 {[%emt 0:05:30]} Na6 {[%emt 0:08:46]} 10. Nd2 {[%emt 0:02:39]} Nc7 {[%emt 0:02:58]} 11. a4 {[%emt 0:02:33]} b6 {[%emt 0:03:46]} 12. f4 {[%emt 0:10:21] A73: Modern Benoni: Classical: Unusual Black 9th moves.} (12. Nc4 $14) 12... Rb8 $11 {[%emt 0:05:39]} 13. Bf3 {[%emt 0:04:14] [#]} Ba6 $146 {[%emt 0:08:54]} ({Predecessor:} 13... Re8 14. Re1 Qd7 15. h3 Ba6 16. Nf1 Rbd8 17. Bd2 Bd3 18. g4 h5 19. Kg2 Re7 20. Ng3 h4 21. Nh1 Rde8 22. Nf2 {1-0 (50) Muhammad,S (2300)-Au,L Los Angeles 1989}) 14. Re1 {[%emt 0:01:54] The position is equal.} Nd7 {[%emt 0:04:14]} 15. Kh1 {[%emt 0:00:32]} Re8 {[%emt 0:06:30]} 16. Be2 {[%emt 0:08:48]} Bb7 {[%emt 0:05:34]} (16... Bxe2 $11 17. Rxe2 Qe7) 17. Nc4 $14 {[%emt 0:06:54]} Nf6 {[%emt 0:02:19]} 18. Bf3 {[%emt 0:00:30]} Ba6 {[%emt 0:01:12] Inhibits Nb5.} 19. Na3 {[%emt 0:01:22]} Nd7 {[%emt 0:06:19]} 20. Nab5 {[%emt 0:18:09]} Bxb5 {[%emt 0:01:11]} 21. axb5 {[%emt 0:00:22]} c4 {[%emt 0:03:26] Prevents Qd3.} ({Black should try} 21... Bxc3 $14 22. bxc3 Nxb5) 22. Ra4 {[%emt 0:01:35]} (22. Rxa7 Bxc3 23. bxc3 Nxb5 $15) (22. Qe2 $16) 22... a6 {[%emt 0:03:23]} 23. Rxc4 {[%emt 0:00:52] bxa6 is the strong threat.} Nc5 {[%emt 0:01:26]} 24. bxa6 {[%emt 0:06:17]} b5 $2 {[%emt 0:02:56] [#] Loses the game.} (24... N7xa6 $16 {was worth a try.} 25. Nb5 Qd7) 25. Rxc5 $1 $18 {[%emt 0:00:47]} dxc5 {[%emt 0:00:08]} 26. a7 {[%emt 0:00:48]} Ra8 {[%emt 0:05:40]} 27. e5 {[%emt 0:07:22] And now d6 would win.} Rxa7 {[%emt 0:00:35]} 28. d6 {[%emt 0:00:06]} Ne6 {[%emt 0:00:25]} 29. Be3 {[%emt 0:04:27]} (29. Nxb5 Ra1 $16) 29... Qa5 {[%emt 0:02:08]} 30. Nd5 {[%emt 0:02:12]} b4 {[%emt 0:02:58]} 31. Be2 {[%emt 0:03:02]} b3 {[%emt 0:01:46]} 32. Bc4 {[%emt 0:01:01]} Nd4 {[%emt 0:00:22]} 33. Bxd4 {[%emt 0:01:31]} cxd4 {[%emt 0:00:05]} 34. Rf1 {[%emt 0:00:20]} ({Don't take} 34. Bxb3 $6 Qc5 35. Ne7+ Rexe7 36. dxe7 Rxe7 $16) 34... Qc5 {[%emt 0:03:22]} 35. Qxb3 {[%emt 0:04:33]} ({Resist} 35. Bxb3 $6 Rb8 $16) 35... Rea8 {[%emt 0:00:31]} 36. h3 {[%emt 0:02:01]} Ra1 $2 {[%emt 0:01:15]} (36... Kh8 37. Qd3 (37. Nc7 Rxc7 38. dxc7 Qxc7 $16) 37... Rc8) 37. Rxa1 {[%emt 0:00:29]} Rxa1+ {[%emt 0:00:03]} 38. Kh2 {[%emt 0:00:30] [#] White threatens Ne7+ and mate.} d3 {[%emt 0:00:30]} 39. Ne7+ {[%emt 0:00:30] Weighted Error Value: White=0.12 (very precise) /Black=0.64} 1-0

[Event "Austrian Championship 2022"]
[Site "Vienna"]
[Date "2022.08.15"]
[Round "5.2"]
[White "Stadlinger, Matthias"]
[Black "Jethan, Martin"]
[Result "1/2-1/2"]
[ECO "B12"]
[WhiteElo "1975"]
[BlackElo "2103"]
[Annotator "NA RC"]
[PlyCount "27"]
[EventDate "2022.08.12"]
[EventType "swiss"]
[EventCountry "AUT"]
[SourceTitle "playchess.com"]
[Source "ChessBase"]
[SourceQuality "1"]
[TimeControl "40/5400+30:1800+30"]

1. e4 {[%emt 0:00:02]} c6 {[%emt 0:00:58]} 2. d4 {[%emt 0:00:05]} d5 {[%emt 0:00:50]} 3. f3 {[%emt 0:00:11]} dxe4 {[%emt 0:00:34]} 4. fxe4 {[%emt 0:00:09]} e5 {[%emt 0:00:05]} 5. Nf3 {[%emt 0:00:04]} Be6 {[%emt 0:00:40]} 6. c3 {[%emt 0:00:10]} Nd7 {[%emt 0:01:00]} 7. Bd3 {[%emt 0:04:12]} Bd6 {[%emt 0:02:55]} 8. O-O {[%emt 0:00:28]} f6 {[%emt 0:07:41]} 9. Be3 {[%emt 0:03:23]} Ne7 {[%emt 0:00:45]} 10. Qc2 {[%emt 0:04:14]} Qc7 {[%emt 0:07:05]} 11. Nbd2 {[%emt 0:03:05]} Bf7 {[%emt 0:06:07]} 12. Nc4 {[%emt 0:02:49]} O-O {[%emt 0:01:46]} 13. Rae1 {[%emt 0:13:45]} Ng6 {[%emt 0:01:04]} 14. h4 {[%emt 0:14:45]} 1/2-1/2

[Event "Austrian Championship 2022"]
[Site "Vienna"]
[Date "2022.08.15"]
[Round "5.3"]
[White "Borrmann, Laurenz"]
[Black "Horvath, Dominik"]
[Result "0-1"]
[ECO "C50"]
[WhiteElo "2274"]
[BlackElo "2488"]
[Annotator "TA"]
[PlyCount "40"]
[EventDate "2022.08.12"]
[EventType "swiss"]
[EventCountry "AUT"]
[SourceTitle "playchess.com"]
[Source "ChessBase"]
[SourceQuality "1"]
[TimeControl "40/5400+30:1800+30"]

{[%evp 9,40,19,21,16,22,14,43,40,33,37,43,9,0,0,0,0,0,0,0,0,25,0,4,8,9,0,0,-452,-476,-476,-474,-447,-421]} 1. e4 {[%emt 0:00:04]} e5 {[%emt 0:00:24]} 2. Nf3 {[%emt 0:00:18]} Nc6 {[%emt 0:00:02]} 3. Bc4 {[%emt 0:01:00]} Nf6 {[%emt 0:01:12]} 4. d3 {[%emt 0:00:08]} Bc5 {[%emt 0:00:05]} 5. a4 {[%emt 0:00:11]} O-O {[%emt 0:00:53]} 6. O-O {[%emt 0:00:12] C50: Hungarian Defence and Giuoco Pianissimo.} a5 {[%emt 0:01:05]} 7. c3 {[%emt 0:03:22]} d5 {[%emt 0:06:00]} 8. exd5 {[%emt 0:00:08] White is slightly better.} Nxd5 {[%emt 0:00:02]} 9. Re1 {[%emt 0:00:20]} Bg4 {[%emt 0:00:03]} 10. h3 {[%emt 0:00:09]} Bh5 {[%emt 0:00:03]} 11. Nbd2 {[%emt 0:00:09]} Nb6 {[%emt 0:00:06]} 12. Bb3 {[%emt 0:00:22]} Qxd3 {[%emt 0:01:12]} 13. Nxe5 {[%emt 0:00:07]} Qf5 {[%emt 0:00:02] Dancing on a razor blade.} 14. Nef3 $1 {[%emt 1:31:00]} ({Not} 14. Ndf3 $2 Nxe5 15. Rxe5 Qxe5 16. Nxe5 Bxd1 17. Bxd1 Rfe8 $19) 14... Rad8 {[%emt 0:00:18] [#]} 15. g4 $146 {[%emt 0:00:00]} (15. Qe2 $5 {[%cal Rg2g4]}) ({Predecessor:} 15. Qe2 Qc8 16. Ne4 Be7 17. Bf4 Rfe8 18. Qb5 Bg6 19. Neg5 Bf6 20. Nh4 Bxg5 21. Qxg5 {1-0 (48) Firouzja,A (2804)-Aronian,L (2772) Warsaw 2021}) 15... Bxg4 {[%emt 0:00:20]} 16. hxg4 {[%emt 0:00:00]} Qxg4+ {[%emt 0:00:03]} 17. Kh1 $1 {[%emt 0:00:00]} Qh3+ {[%emt 0:26:18]} ({Don't take} 17... Bxf2 18. Nh2 Qxd1 19. Rxd1 $14) 18. Kg1 $2 {[%emt 0:00:00][%mdl 8192]} (18. Nh2 $11 {and White is okay.} Bd6 19. f4) 18... Rd6 $19 {[%emt 0:03:46] [#] ( -> ...Rg6+). Black is clearly winning.} 19. Ne4 {[%emt 0:00:00]} Rxd1 {[%emt 0:01:51]} 20. Bxd1 {[%emt 0:00:00]} Bd6 {[%emt 0:02:10] Weighted Error Value: White=0.41/Black=0.05 (flawless)} 0-1

[Event "Austrian Championship 2022"]
[Site "Vienna"]
[Date "2022.08.15"]
[Round "5.3"]
[White "Balint, Peter"]
[Black "Tumanyan, Gor"]
[Result "1/2-1/2"]
[ECO "B38"]
[WhiteElo "2051"]
[BlackElo "1884"]
[Annotator "NA RC"]
[PlyCount "119"]
[EventDate "2022.08.12"]
[EventType "swiss"]
[EventCountry "AUT"]
[SourceTitle "playchess.com"]
[Source "ChessBase"]
[SourceQuality "1"]
[TimeControl "40/5400+30:1800+30"]

1. e4 {[%emt 0:00:01]} c5 {[%emt 0:00:04]} 2. Nf3 {[%emt 0:00:02]} g6 {[%emt 0:00:40]} 3. d4 {[%emt 0:00:04]} cxd4 {[%emt 0:00:03]} 4. Nxd4 {[%emt 0:00:03]} Bg7 {[%emt 0:01:23]} 5. c4 {[%emt 0:00:14]} Nc6 {[%emt 0:00:06]} 6. Be3 {[%emt 0:00:03]} Nf6 {[%emt 0:00:14]} 7. Nc3 {[%emt 0:00:08]} O-O {[%emt 0:00:16]} 8. Be2 {[%emt 0:00:09]} d6 {[%emt 0:00:15]} 9. O-O {[%emt 0:00:05]} Bd7 {[%emt 0:00:13]} 10. Qd2 {[%emt 0:00:07]} Nxd4 {[%emt 0:00:08]} 11. Bxd4 {[%emt 0:00:04]} Bc6 {[%emt 0:00:06]} 12. f3 {[%emt 0:00:03]} Nd7 {[%emt 0:01:23]} 13. Be3 {[%emt 0:02:06]} a5 {[%emt 0:05:05]} 14. b3 {[%emt 0:00:23]} Nc5 {[%emt 0:10:20]} 15. Rab1 {[%emt 0:00:13]} Qc7 {[%emt 0:17:33]} 16. Rfc1 {[%emt 0:04:49]} Rfc8 {[%emt 0:07:32]} 17. Bf1 {[%emt 0:01:20]} Qd8 {[%emt 0:09:56]} 18. Rc2 {[%emt 0:00:17]} h5 {[%emt 0:04:16]} 19. a3 {[%emt 0:00:18]} Kh7 {[%emt 0:05:36]} 20. b4 {[%emt 1:30:01]} axb4 {[%emt 0:01:07]} 21. axb4 {[%emt 0:00:00]} Na4 {[%emt 0:02:01]} 22. Ne2 {[%emt 0:00:00]} Bd7 {[%emt 0:13:23]} 23. Nd4 {[%emt 0:00:00]} Nb6 {[%emt 0:09:36]} 24. Be2 {[%emt 0:00:00]} Ra3 {[%emt 0:01:19]} 25. Qc1 {[%emt 0:02:30]} Rca8 {[%emt 0:00:29]} 26. Nb3 {[%emt 0:00:00]} Rxb3 {[%emt 0:07:32]} 27. Rxb3 {[%emt 0:00:00]} Ba4 {[%emt 0:00:25]} 28. Qb1 {[%emt 0:00:00]} Nd7 {[%emt 0:00:29]} 29. f4 {[%emt 0:00:00]} Bxb3 {[%emt 0:00:58]} 30. Qxb3 {[%emt 0:00:00]} Ra1+ {[%emt 0:00:35]} 31. Kf2 {[%emt 0:00:00]} e5 {[%emt 0:01:10]} 32. g3 {[%emt 0:00:00]} exf4 {[%emt 0:00:04]} 33. Bxf4 {[%emt 0:00:00]} Bd4+ {[%emt 0:00:57]} 34. Be3 {[%emt 0:00:00]} Qf6+ {[%emt 0:01:05]} 35. Kg2 {[%emt 0:00:00]} Bxe3 {[%emt 0:00:34]} 36. Qxe3 {[%emt 0:00:00]} Ne5 {[%emt 0:00:44]} 37. Qd4 {[%emt 0:00:00]} Re1 {[%emt 0:00:25]} 38. Qc3 {[%emt 0:00:00]} Ng4 {[%emt 0:00:49]} 39. Qxf6 {[%emt 0:00:00]} Nxf6 {[%emt 0:00:02]} 40. c5 {[%emt 0:00:00]} dxc5 {[%emt 0:00:45]} 41. bxc5 {[%emt 0:00:00]} Nxe4 {[%emt 0:12:28]} 42. Bf3 {[%emt 0:00:00]} Kg7 {[%emt 0:05:03]} 43. c6 {[%emt 0:00:00]} bxc6 {[%emt 0:00:09]} 44. Bxe4 {[%emt 0:00:00]} Rxe4 {[%emt 0:00:07]} 45. Rxc6 {[%emt 0:00:00]} h4 {[%emt 0:02:12]} 46. Kf3 {[%emt 0:00:00]} Ra4 {[%emt 0:02:35]} 47. Rc2 {[%emt 0:00:00]} Kf6 {[%emt 0:03:12]} 48. Rb2 {[%emt 0:00:00]} Kg5 {[%emt 0:01:18]} 49. Rc2 {[%emt 0:00:00]} Ra3+ {[%emt 0:01:19]} 50. Kg2 {[%emt 0:00:00]} Ra4 {[%emt 0:00:26]} 51. Kf3 {[%emt 0:00:00]} f5 {[%emt 0:02:17]} 52. Rd2 {[%emt 0:00:00]} Kh5 {[%emt 0:00:24]} 53. Rc2 {[%emt 0:00:00]} g5 {[%emt 0:01:10]} 54. Rb2 {[%emt 0:00:00]} Ra3+ {[%emt 0:00:36]} 55. Kg2 {[%emt 0:00:00]} f4 {[%emt 0:01:24]} 56. gxf4 {[%emt 0:00:00]} h3+ {[%emt 0:00:35]} 57. Kf2 {[%emt 0:00:00]} gxf4 {[%emt 0:00:02]} 58. Rb8 {[%emt 0:00:00]} Ra2+ {[%emt 0:03:09]} 59. Kf3 {[%emt 0:00:00]} Rxh2 {[%emt 0:00:25]} 60. Kxf4 {[%emt 0:00:00]} 1/2-1/2

[Event "Austrian Championship 2022"]
[Site "Vienna"]
[Date "2022.08.15"]
[Round "5.4"]
[White "Shengelia, David"]
[Black "Leisch, Lukas"]
[Result "1/2-1/2"]
[ECO "E14"]
[WhiteElo "2462"]
[BlackElo "2404"]
[Annotator "TA"]
[PlyCount "119"]
[EventDate "2022.08.12"]
[EventType "swiss"]
[EventCountry "AUT"]
[SourceTitle "playchess.com"]
[Source "ChessBase"]
[SourceQuality "1"]
[TimeControl "40/5400+30:1800+30"]

{[%evp 17,119,12,14,8,12,13,16,0,14,0,0,-18,-14,-24,0,0,-2,0,0,0,16,-18,-11,-13,25,0,4,-33,-43,-28,-25,-52,-40,-55,-58,-132,-6,-19,0,-102,-125,-130,-112,-125,-110,-193,-195,-204,-156,-214,-99,-80,-95,-82,0,0,107,0,0,0,29977,0,0,-220,-207,-200,-200,-200,-200,-201,-172,-229,-196,-287,-276,-266,-238,-292,-265,-244,-132,-131,-127,-332,-327,-341,-98,-77,-47,-50,-28,-17,-23,-36,0,-37,-41,-31,-41,-51,0,0,0,-108]} 1. Nf3 {[%emt 0:00:03]} d5 {[%emt 0:00:07]} 2. e3 {[%emt 0:00:17]} Nf6 {[%emt 0:00:11]} 3. c4 {[%emt 0:00:17]} e6 {[%emt 0:00:21]} 4. Nc3 {[%emt 0:00:32]} b6 {[%emt 0:02:17]} 5. b3 {[%emt 0:01:08]} Bb7 {[%emt 0:00:24]} 6. Bb2 {[%emt 0:00:21]} Nbd7 {[%emt 0:01:12]} 7. d4 {[%emt 0:00:42]} a6 {[%emt 0:00:34]} 8. Bd3 {[%emt 0:00:14]} Bd6 {[%emt 0:00:22]} 9. O-O {[%emt 0:00:13]} O-O {[%emt 0:00:37]} 10. a4 {[%emt 0:00:09] E14: Queen's Indian: Classical Variation (4 e3).} c5 {[%emt 1:29:25]} 11. cxd5 {[%emt 0:00:27] [#]} Nxd5 $146 {[%emt 0:00:00]} ({Predecessor:} 11... exd5 12. Qe2 Re8 13. Rfd1 Qe7 14. Rac1 Ne4 15. Bb1 Rad8 16. h3 Ndf6 17. a5 bxa5 {1-0 (43) Anton Guijarro,D (2650)-Zhigalko,S (2671) Tallinn 2016}) 12. Nxd5 {[%emt 0:06:47]} Bxd5 {[%emt 0:00:00]} 13. e4 {[%emt 0:26:54]} Bb7 {[%emt 0:00:00]} 14. Qe2 {[%emt 0:03:00]} cxd4 {[%emt 0:00:00]} 15. Nxd4 {[%emt 0:04:17]} Qb8 {[%emt 0:00:00]} 16. g3 {[%emt 0:05:21]} Ne5 {[%emt 0:00:00]} 17. Bc2 {[%emt 0:00:48]} Rd8 {[%emt 0:00:00]} 18. Rac1 {[%emt 0:12:38]} Qa7 {[%emt 0:00:00]} 19. Qh5 {[%emt 0:10:38]} Ng6 {[%emt 0:00:00]} 20. Nf3 {[%emt 0:03:27]} f6 {[%emt 0:00:00] Prevents Ng5.} 21. Rfd1 {[%emt 0:04:49]} e5 {[%emt 0:00:00]} 22. Qh3 {[%emt 0:05:00]} Bc8 {[%emt 0:00:00] Prevents Qe6+.} 23. Qf1 {[%emt 0:00:08]} Be6 {[%emt 0:00:00]} 24. Rd3 {[%emt 0:02:29]} Be7 {[%emt 0:00:00]} 25. Rc3 {[%emt 0:02:33]} Bb4 {[%emt 0:00:00]} 26. Rc6 {[%emt 0:00:35]} (26. Rd3 $15) 26... Nf8 {[%emt 0:00:00]} ({Black should play} 26... Bf7 $1 $17 {White must now prevent ...Bc5.} 27. Bd3 Bc5 28. R1xc5 (28. Bc4 Qd7 $17) 28... bxc5 29. Rxa6 Qb7 30. Rxa8 Qxa8) 27. Bd3 $11 {[%emt 0:00:31]} Bc5 {[%emt 0:00:00]} 28. b4 {[%emt 0:09:15]} (28. Bc4 $11 {keeps the balance.} Qd7 29. Rxe6 Nxe6 30. Qh3) 28... Qd7 $17 {[%emt 0:00:00]} (28... Bxb4 29. Bc4 Qf7 30. Bxe6 (30. Rxb6 Bxc4 31. Qxc4 Qxc4 $11) (30. Bxa6 Bc5 $15) 30... Nxe6 31. Qc4 $11 (31. Rxb6 a5 $11)) 29. Rxe6 {[%emt 0:00:27]} Nxe6 {[%emt 0:00:00]} 30. Bc4 {[%emt 0:00:03]} Bxb4 {[%emt 0:00:00]} 31. Bxe5 {[%emt 0:00:17]} Kh8 $1 $19 {[%emt 0:00:00]} (31... fxe5 32. Ng5 Re8 33. Bxe6+ (33. Qh3 h6 $11) 33... Rxe6 34. Qh3 $11) 32. Bb2 {[%emt 0:00:05]} Bc5 {[%emt 0:00:00][%cal Od7a4]} 33. e5 {[%emt 0:01:21]} (33. Qe2 $17 {was called for.}) 33... Nd4 {[%emt 0:00:49]} (33... Ng5 $1 $19 {[%cal Rg5f3]} 34. Nxg5 fxg5) 34. Bxd4 {[%emt 0:00:35]} Bxd4 {[%emt 0:00:02]} 35. e6 {[%emt 0:00:44]} Qxa4 {[%emt 0:03:20]} (35... Qb7 $17 36. Nxd4 Rxd4) 36. e7 $11 {[%emt 0:00:34]} Rd7 {[%emt 0:01:06]} (36... Bxf2+ $1 $11 {remains equal.} 37. Qxf2 (37. Kxf2 Re8 $11) 37... Rd1+ 38. Rxd1 Qxd1+ 39. Kg2 Qd6) 37. Nh4 {[%emt 0:00:43]} (37. Qe2 $16 Re8 38. Bf7 (38. Nxd4 Qa3 $11) 38... Rdxe7 39. Qxe7 $3 {[%mdl 512]} Rxe7 40. Rc8+ Re8 41. Rxe8+ Qxe8 42. Bxe8) 37... g6 $1 {[%emt 0:00:36]} (37... Rxe7 $2 {leads to mate.} 38. Ng6+ $1 {[%mdl 512]} hxg6 39. Qh3#) 38. Qh3 $1 {[%emt 0:00:19]} Qa3 $2 {[%emt 0:05:23][%mdl 8192]} (38... Bxf2+ $11 39. Kxf2 Rd2+ 40. Ke3 Rd7 41. Nxg6+ Kg7) 39. Qxd7 $2 {[%emt 0:00:48]} (39. Nxg6+ {mates} Kg7 40. Qxd7 Kxg6 41. Re1 Qc5 42. e8=Q+ Rxe8 43. Bd3+ Re4 44. Rxe4) 39... Qxc1+ {[%emt 0:00:03]} 40. Kg2 $2 {[%emt 0:00:01] Active counter play!} (40. Bf1 $11 {and White is okay.} Bxf2+ 41. Kxf2) 40... Qxc4 $19 {[%emt 0:01:05]} 41. e8=Q+ {[%emt 0:30:11]} Rxe8 {[%emt 0:30:11]} 42. Qxe8+ {[%emt 0:00:02][%mdl 4096] Endgame KQB-KQN} Qg8 {[%emt 0:00:00]} 43. Qe7 {[%emt 0:00:00]} b5 {[%emt 0:00:00][%cal Bb6b5,Bb5b4][%mdl 32]} 44. Nf3 {[%emt 0:00:00]} Bc3 {[%emt 0:00:00]} 45. Qb7 {[%emt 0:00:00]} (45. Nd2 $142) 45... b4 {[%emt 0:00:00]} 46. Qxa6 {[%emt 0:00:00]} Qd5 {[%emt 0:00:00] Inhibits Qc6.} 47. Qc8+ {[%emt 0:00:00] [#]} Kg7 $1 {[%emt 0:00:00] aiming for ...Be5.} 48. Qc7+ {[%emt 0:00:00]} Qf7 {[%emt 0:00:00]} (48... Kf8 $19 {Strongly threatening ...Ke8.} 49. Qc8+ Kg7 50. Qc7+ Kh6) 49. Qc6 $17 {[%emt 0:00:00]} h6 {[%emt 0:00:00]} 50. Ng1 $2 {[%emt 0:00:00] [#]} (50. h4 $17) 50... f5 $1 $19 {[%emt 0:00:00]} 51. Ne2 {[%emt 0:00:00]} Be5 {[%emt 0:00:00]} (51... Bf6 $19 {and Black stays clearly on top. And now ...b3 would win.} 52. Nf4 b3) 52. Nc1 $17 {[%emt 0:00:00]} Bf6 {[%emt 0:00:00]} 53. Qb5 $1 {[%emt 0:00:00]} Qe7 {[%emt 0:00:00] Hoping for ...Qe4+.} 54. Nd3 {[%emt 0:00:00]} Qe4+ {[%emt 0:00:00]} 55. Kg1 {[%emt 0:00:00]} Bd4 {[%emt 0:00:00]} 56. Qd7+ {[%emt 0:00:00]} (56. Qxb4 $5 g5 57. Qb5 $11) 56... Kg8 {[%emt 0:00:00] ...b3 is the strong threat.} 57. Qd8+ {[%emt 0:00:00]} Kh7 {[%emt 0:00:19]} 58. Qd7+ {[%emt 0:00:00]} Kg8 {[%emt 0:00:02]} (58... Bg7 $15 59. Qb5 Qe2) 59. Qd8+ $11 {[%emt 0:00:00]} Kh7 {[%emt 0:00:05]} (59... Kf7 $11) 60. Qd7+ {[%emt 0:00:00] Whites escaped into a draw.  Weighted Error Value: White=0.41/Black=0.36} 1/2-1/2